bitfinex/quotes_ETHUSD_20240719
["timestamp","ask_amount","ask_price","bid_price","bid_amount"]
[1721367302580,1.697347,3424.8,3424.3,2.9203]
[1721367302893,0.05356048,3424.7,3424.3,2.9203]
[1721367303100,2.42626048,3424.7,3424.3,2.9203]
[1721367303400,2.3727,3424.7,3424.1,2.92041]
[1721367303755,0.05357139,3424.6,3424.1,2.92041]
[1721367305537,0.05357139,3424.6,3424.2,2.92037]
[1721367313031,4.617237,3424.8,3424.2,2.92037]
[1721367313441,0.05357728,3424.7,3424.2,2.92037]
[1721367314037,0.05357728,3424.7,3424.2,5.25657]
[1721367315353,2.97354728,3424.7,3424.0,6.88605]
[1721367315877,2.97354728,3424.7,3424.1,2.92047]
[1721367319973,0.05357728,3424.7,3424.2,5.18147]
[1721367320128,0.05357728,3424.7,3424.2,6.096167]
[1721367320562,0.05357728,3424.7,3424.3,2.92028]
[1721367320758,0.05357728,3424.7,3424.4,1.045]
[1721367320969,1.697347,3424.8,3424.6,3.5094]
[1721367321768,1.697347,3424.8,3424.7,2.91996]
[1721367322062,1.697347,3424.8,3424.7,3.8549]
[1721367324153,1.697347,3424.8,3424.7,6.2447]
[1721367325255,1.697347,3424.8,3424.7,9.16466]
[1721367325569,1.697347,3424.8,3424.7,10.18010651]
[1721367325947,1.697347,3424.8,3424.7,11.70326541]
[1721367326480,1.697347,3424.8,3424.7,15.23656606]
[1721367326859,1.697347,3424.8,3424.7,14.62322541]
[1721367327370,1.697347,3424.8,3424.7,15.23567436]
[1721367327568,1.697347,3424.8,3424.7,15.23540392]
[1721367328681,1.697347,3424.8,3424.7,12.69706895]
[1721367328891,1.697347,3424.8,3424.7,15.23544847]
[1721367329272,1.08816475,3424.8,3424.7,14.62299952]
[1721367329481,1.08816475,3424.8,3424.7,18.23499443]
[1721367329691,1.08816475,3424.8,3424.7,17.62299952]
[1721367330357,1.08816475,3424.8,3424.7,18.23478048]
[1721367330886,2.91862,3426.3,3425.8,2.91894]
[1721367330887,2.3238,3426.3,3425.8,2.91894]
[1721367331076,0.05195218,3426.2,3425.8,2.91894]
[1721367331396,2.3238,3426.3,3425.8,2.91894]
[1721367331549,0.05197433,3426.1,3425.8,2.91894]
[1721367331749,0.05197461,3426.2,3425.8,2.91894]
[1721367331992,0.05197405,3426.0,3425.8,2.91894]
[1721367332295,2.3238,3426.3,3425.8,2.91894]
[1721367332296,0.05197376,3425.9,3425.8,2.91894]
[1721367332450,2.3238,3426.3,3425.8,2.91894]
[1721367332646,0.05197578,3426.2,3425.8,2.91894]
[1721367332883,3.148024,3426.3,3425.8,2.91894]
[1721367333060,0.05222087,3426.2,3425.8,2.91894]
[1721367333259,3.148024,3426.3,3425.8,2.91894]
[1721367333474,0.05222105,3426.2,3425.8,2.91894]
[1721367333674,3.148024,3426.3,3425.8,2.91894]
[1721367333860,0.0522212,3426.2,3425.8,2.91894]
[1721367334181,3.148024,3426.3,3425.8,2.91894]
[1721367334362,0.05222077,3426.1,3425.8,2.91894]
[1721367334682,0.05222049,3426.0,3425.9,2.91893]
[1721367334892,2.3238,3426.3,3425.9,2.91893]
[1721367335081,0.0522209,3426.2,3425.9,2.91893]
[1721367335250,2.3238,3426.3,3425.9,2.91893]
[1721367335554,0.05222105,3426.2,3425.9,2.91893]
[1721367335750,0.05222105,3426.2,3426.0,2.91878]
[1721367335953,2.3824,3426.5,3426.0,2.91878]
[1721367336151,0.05224238,3426.1,3426.0,2.91878]
[1721367336391,2.3824,3426.5,3426.0,2.91878]
[1721367336885,0.05224278,3426.4,3426.0,2.91878]
[1721367337879,0.05224278,3426.4,3425.9,1.045]
[1721367338190,2.2627,3426.3,3425.7,2.9191]
[1721367338417,0.68011406,3426.2,3425.7,2.9191]
[1721367339200,2.3803,3426.1,3425.3,2.91942]
[1721367339399,0.05226221,3426.0,3425.3,2.91942]
[1721367339571,2.3803,3425.9,3425.3,2.91942]
[1721367339906,0.05226165,3425.8,3425.3,2.91942]
[1721367341501,0.05226165,3425.8,3425.4,2.91935]
[1721367343718,0.05226165,3425.8,3425.4,7.041038]
[1721367344221,0.05228754,3425.7,3425.4,7.041038]
[1721367344437,5.17129,3426.2,3425.4,7.041038]
[1721367344726,0.05228725,3425.6,3425.5,2.91928]
[1721367344885,5.17129,3426.2,3425.5,2.91928]
[1721367345084,0.05228725,3425.6,3425.5,2.91928]
[1721367345294,5.17129,3426.2,3425.5,2.91928]
[1721367345492,0.05228725,3425.6,3425.5,2.91928]
[1721367345709,5.17129,3426.2,3425.5,2.91928]
[1721367345912,6.084772,3426.2,3425.5,2.91928]
[1721367346119,0.05228866,3426.1,3425.6,2.91917]
[1721367346922,0.05228866,3426.1,3425.7,2.9191]
[1721367348245,0.05231081,3426.0,3425.7,2.9191]
[1721367348393,2.91861,3426.3,3425.7,2.9191]
[1721367348746,0.8752746,3426.2,3425.7,2.9191]
[1721367355227,0.8752746,3426.2,3425.6,1.045]
[1721367355924,0.8752746,3426.2,3425.7,2.91904]
[1721367361255,0.8752746,3426.2,3425.6,1.045]
[1721367361643,0.8752746,3426.2,3425.6,3.96414]
[1721367361845,0.61864846,3426.1,3425.6,3.96414]
[1721367362168,0.05231081,3426.0,3425.6,3.96414]
[1721367362696,2.91861,3426.3,3425.6,3.96414]
[1721367362871,0.05231138,3426.2,3425.6,3.96414]
[1721367366796,0.05231138,3426.2,3425.7,2.91911]
[1721367367985,2.97100138,3426.2,3425.6,1.045]
[1721367368389,3.79920452,3426.2,3425.6,1.045]
[1721367369265,3.79920452,3426.2,3425.6,3.96419]
[1721367369999,3.79920452,3426.2,3425.6,1.045]
[1721367370993,3.79920452,3426.2,3425.6,3.96418]
[1721367372664,2.97100138,3426.2,3425.6,3.96418]
[1721367373661,0.05231138,3426.2,3425.6,3.96418]
[1721367373867,5.31112,3426.4,3425.7,2.91909]
[1721367374069,0.05235122,3426.3,3425.7,2.91909]
[1721367377919,0.05235122,3426.3,3426.2,2.91868]
[1721367378116,2.3273,3426.7,3426.2,2.91868]
[1721367378424,2.3273,3426.7,3426.3,1.045]
[1721367378737,0.05064578,3426.6,3426.3,1.045]
[1721367379396,0.05064578,3426.6,3426.3,3.96352]
[1721367382730,2.4203,3426.9,3426.3,3.96352]
[1721367382930,0.05066492,3426.8,3426.3,3.96352]
[1721367390363,0.83890549,3426.7,3426.3,3.96352]
[1721367390720,0.05072358,3426.6,3426.3,3.96352]
[1721367391126,5.33839,3426.9,3426.3,3.96352]
[1721367391434,0.05072414,3426.8,3426.3,3.96352]
[1721367392338,0.05072414,3426.8,3426.3,6.22102]
[1721367394136,0.05072414,3426.8,3426.4,2.9185]
[1721367394338,3.0,3427.0,3426.4,2.9185]
[1721367394631,0.05072442,3426.9,3426.4,3.9635]
[1721367396757,0.05072442,3426.9,3426.4,2.9185]
[1721367397083,0.05072442,3426.9,3426.2,2.91867]
[1721367397243,0.05072442,3426.9,3426.3,2.91858]
[1721367397440,1.28338186,3426.9,3426.3,2.91858]
[1721367399290,0.05072442,3426.9,3426.3,2.91858]
[1721367401989,0.05072442,3426.9,3426.4,1.045]
[1721367402194,0.05072442,3426.9,3426.4,3.5087]
[1721367402388,0.05072442,3426.9,3426.4,6.4272]
[1721367404535,0.05072442,3426.9,3426.5,2.91842]
[1721367404887,5.395,3427.1,3426.5,2.91842]
[1721367405070,5.395,3427.1,3426.6,1.045]
[1721367405071,0.05085399,3427.0,3426.6,1.045]
[1721367408607,0.05085399,3427.0,3426.6,3.96328]
[1721367409617,0.05085399,3427.0,3426.7,2.91825]
[1721367414016,3.0,3427.2,3426.7,2.91825]
[1721367414209,0.04924646,3426.9,3426.7,2.91825]
[1721367414409,3.0,3427.2,3426.7,2.91825]
[1721367415044,0.04924832,3427.1,3426.7,2.91825]
[1721367420547,0.04924832,3427.1,3426.6,1.045]
[1721367420734,2.2667,3427.0,3426.6,3.96332]
[1721367420936,0.04924646,3426.9,3426.6,3.96332]
[1721367424268,0.04924646,3426.9,3426.6,1.045]
[1721367426881,0.04924646,3426.9,3426.6,3.96326]
[1721367427178,3.0,3427.2,3426.6,4.897798]
[1721367427359,0.0492426,3426.8,3426.6,3.96326]
[1721367427554,5.2404,3427.3,3426.6,3.96326]
[1721367427772,0.04924373,3427.2,3426.6,3.96326]
[1721367431952,0.04924373,3427.2,3426.7,2.91824]
[1721367436493,0.04924373,3427.2,3426.8,2.91814]
[1721367436699,0.04924373,3427.2,3426.8,3.96314]
[1721367436859,2.3226,3427.3,3426.8,4.651278]
[1721367437055,0.04925844,3427.1,3426.8,4.651278]
[1721367437376,0.04925816,3427.0,3426.8,4.651278]
[1721367437549,2.3226,3427.3,3426.8,4.651278]
[1721367437753,0.04925994,3427.2,3426.8,4.651278]
[1721367437990,2.3226,3427.3,3426.8,4.651278]
[1721367438150,0.04925994,3427.2,3426.8,4.651278]
[1721367438360,2.3226,3427.3,3426.8,4.651278]
[1721367438576,0.0476498,3427.2,3426.9,2.91807]
[1721367438893,2.3226,3427.3,3426.9,2.91807]
[1721367439067,0.04764952,3427.1,3426.9,2.91807]
[1721367439401,0.04764773,3427.0,3426.9,3.6750148]
[1721367439866,2.3226,3427.3,3426.9,3.6750148]
[1721367440068,0.04764773,3427.0,3426.9,2.91807]
[1721367440264,2.3226,3427.3,3426.9,2.91807]
[1721367440500,0.04764773,3427.0,3426.9,2.91807]
[1721367440796,0.04602257,3427.0,3426.9,2.91807]
[1721367440999,2.3226,3427.3,3426.9,2.91807]
[1721367441209,0.04602313,3427.2,3426.9,2.91807]
[1721367441670,2.3226,3427.3,3426.9,2.91807]
[1721367441865,0.04602285,3427.1,3426.7,2.91824]
[1721367442094,2.3226,3427.3,3426.7,2.91824]
[1721367442280,0.04602446,3427.0,3426.7,2.91824]
[1721367442490,5.24036,3427.3,3426.7,3.852774]
[1721367442691,0.04602418,3426.9,3426.7,2.91824]
[1721367443054,5.24036,3427.3,3426.7,2.91824]
[1721367443254,0.0460239,3426.8,3426.7,2.91824]
[1721367443770,5.24036,3427.3,3426.7,2.91824]
[1721367444100,0.04602502,3427.2,3426.7,2.91824]
[1721367444988,0.04602502,3427.2,3426.7,3.852774]
[1721367446459,0.04602502,3427.2,3426.7,2.91824]
[1721367458249,2.3841,3427.1,3426.7,2.91824]
[1721367458625,0.04601689,3427.0,3426.7,2.91824]
[1721367459247,2.91776,3427.3,3426.7,2.91824]
[1721367459450,0.04602038,3426.9,3426.7,2.91824]
[1721367459611,2.91776,3427.3,3426.8,0.914954]
[1721367459810,0.04602122,3427.2,3426.7,2.91824]
[1721367466670,2.4964,3427.1,3426.6,1.045]
[1721367466873,2.918,3427.0,3426.4,2.91848]
[1721367467166,2.96402081,3427.0,3426.5,1.01501475]
[1721367467373,2.96402081,3427.0,3426.4,3.96348]
[1721367467538,2.96402081,3427.0,3426.5,1.9949486]
[1721367467740,2.96402081,3427.0,3426.5,0.9799441]
[1721367467952,0.04602081,3427.0,3426.5,3.8983641]
[1721367474045,0.04602081,3427.0,3426.6,4.97834081]
[1721367474244,0.04602081,3427.0,3426.6,3.96334]
[1721367474666,0.04602081,3427.0,3426.6,4.88757327]
[1721367482514,0.04602081,3427.0,3426.6,3.84257327]
[1721367483613,0.04602081,3427.0,3426.6,0.92423327]
[1721367485376,0.04602081,3427.0,3426.5,3.8983641]
[1721367485578,0.04602081,3427.0,3426.6,1.01498547]
[1721367485912,0.04602081,3427.0,3426.5,3.8983641]
[1721367486074,0.04602081,3427.0,3426.6,1.01498292]
[1721367486287,0.04602081,3427.0,3426.5,3.8983641]
[1721367486493,0.04602081,3427.0,3426.6,1.01498606]
[1721367486694,0.04602081,3427.0,3426.5,3.8983641]
[1721367486918,0.04602081,3427.0,3426.6,1.01498638]
[1721367487119,0.04602081,3427.0,3426.5,3.8983641]
[1721367487329,0.04602081,3427.0,3426.6,1.01498547]
[1721367487490,0.04602081,3427.0,3426.5,3.8983641]
[1721367487687,0.04602081,3427.0,3426.6,1.0149853]
[1721367487922,0.04602081,3427.0,3426.5,3.8983641]
[1721367488128,0.04602081,3427.0,3426.6,1.01498535]
[1721367488335,0.04602081,3427.0,3426.5,3.8983641]
[1721367488627,0.04602081,3427.0,3426.6,1.01498538]
[1721367488829,0.04602081,3427.0,3426.5,3.8983641]
[1721367489036,0.04602081,3427.0,3426.6,1.98840562]
[1721367489238,0.04602081,3427.0,3426.6,0.97342351]
[1721367492230,0.04602081,3427.0,3426.5,2.91842]
[1721367492435,0.04602081,3427.0,3426.6,1.01498174]
[1721367492607,0.04602081,3427.0,3426.5,2.91842]
[1721367492808,0.04602081,3427.0,3426.6,1.0149846]
[1721367493020,0.04602081,3427.0,3426.5,2.91842]
[1721367493220,0.04602081,3427.0,3426.6,1.01498171]
[1721367493420,0.04602081,3427.0,3426.5,3.88585019]
[1721367493614,0.04602081,3427.0,3426.6,1.01498457]
[1721367493800,0.04602081,3427.0,3426.5,3.88585019]
[1721367493996,0.04602081,3427.0,3426.6,1.01498515]
[1721367494197,0.04602081,3427.0,3426.5,3.88585019]
[1721367494436,0.04602081,3427.0,3426.6,1.0149851]
[1721367494641,0.04602081,3427.0,3426.5,3.88585019]
[1721367494939,0.04602081,3427.0,3426.6,1.01498507]
[1721367495112,0.04602081,3427.0,3426.6,1.07367062]
[1721367498836,0.04602081,3427.0,3426.6,3.99200062]
[1721367500003,0.04602081,3427.0,3426.7,2.91819]
[1721367500205,0.04602081,3427.0,3426.8,2.91815]
[1721367500514,5.24777,3427.4,3426.8,2.91815]
[1721367500733,0.04601367,3426.9,3426.8,2.91815]
[1721367501046,0.04601452,3426.9,3426.8,3.89919916]
[1721367501217,5.24777,3427.4,3426.8,3.89919916]
[1721367501446,0.04601574,3427.3,3426.8,2.91815]
[1721367505147,0.04601574,3427.3,3426.9,2.91808]
[1721367511778,0.04601574,3427.3,3427.0,2.918]
[1721367513388,2.452,3427.2,3426.8,2.91811]
[1721367513579,2.452,3427.2,3426.5,2.9184]
[1721367513787,0.04608891,3427.1,3426.7,2.9182]
[1721367513950,2.452,3427.2,3426.7,2.9182]
[1721367514286,0.04608891,3427.1,3426.7,2.9182]
[1721367516076,0.04608891,3427.1,3426.8,2.91817]
[1721367516459,0.04608891,3427.1,3426.6,2.91834]
[1721367516460,0.04608891,3427.1,3426.9,2.91807]
[1721367516663,0.04608891,3427.1,3426.9,3.501708]
[1721367524505,0.04608891,3427.1,3426.9,2.91807]
[1721367526937,0.04608891,3427.1,3426.7,2.91823]
[1721367527340,0.04608891,3427.1,3426.8,2.91817]
[1721367527538,2.452,3427.2,3426.8,2.91817]
[1721367527743,0.04607716,3427.0,3426.8,2.91817]
[1721367527911,2.452,3427.2,3426.8,2.91817]
[1721367528640,0.04607763,3427.1,3426.8,2.91817]
[1721367530439,5.38138,3427.5,3426.9,0.520567]
[1721367530635,5.38138,3427.5,3426.8,2.91817]
[1721367530840,0.04606278,3427.4,3426.8,2.91817]
[1721367532452,0.04606278,3427.4,3426.9,2.91803]
[1721367534751,0.04606278,3427.4,3427.0,2.91799]
[1721367535764,0.04606278,3427.4,3427.1,2.91791]
[1721367541745,0.04606278,3427.4,3427.3,2.91774]
[1721367542046,5.3266,3427.8,3427.3,2.91774]
[1721367542264,0.04613716,3427.7,3427.3,2.91774]
[1721367542449,5.3266,3427.8,3427.3,2.91774]
[1721367542650,0.04613716,3427.7,3427.3,2.91774]
[1721367542852,2.3266,3427.8,3427.3,2.91774]
[1721367543143,0.04613716,3427.7,3427.3,2.91774]
[1721367543675,0.04613688,3427.6,3427.3,2.91774]
[1721367543863,2.3266,3427.8,3427.3,3.747925]
[1721367544174,0.04613716,3427.7,3427.3,2.91774]
[1721367544385,0.04613716,3427.7,3427.4,2.91765]
[1721367544542,2.3266,3427.8,3427.4,2.9176]
[1721367545081,0.04613716,3427.7,3427.4,2.9176]
[1721367545375,2.3266,3427.8,3427.4,2.9176]
[1721367545581,0.04613688,3427.6,3427.4,2.9176]
[1721367545745,2.3266,3427.8,3427.5,0.58353]
[1721367546080,2.3266,3427.8,3427.4,2.9176]
[1721367546251,0.04613716,3427.7,3427.4,2.9176]
[1721367546454,2.3266,3427.8,3427.5,2.91757]
[1721367546655,0.04613716,3427.7,3427.5,2.91757]
[1721367546853,2.4586,3428.0,3427.5,2.91757]
[1721367547049,0.04613772,3427.9,3427.5,2.91757]
[1721367547747,2.91708,3428.1,3427.5,2.91757]
[1721367547971,0.04613744,3427.8,3427.5,2.91757]
[1721367548282,0.04613716,3427.7,3427.5,3.747547]
[1721367548470,2.91708,3428.1,3427.5,3.747547]
[1721367548668,2.3184,3428.2,3427.5,2.91757]
[1721367548669,0.046138,3428.0,3427.5,2.91757]
[1721367548857,5.3184,3428.2,3427.6,2.91749]
[1721367549060,0.04613828,3428.1,3427.6,2.91749]
[1721367552791,0.04613828,3428.1,3427.4,5.38211]
[1721367552792,2.96320828,3428.1,3427.4,5.38211]
[1721367553022,2.96320828,3428.1,3427.5,2.91756]
[1721367553319,2.96320828,3428.1,3427.5,3.747536]
[1721367559439,2.96320828,3428.1,3427.5,2.91756]
[1721367562806,2.3775,3428.0,3427.5,2.91756]
[1721367563206,0.04474423,3427.9,3427.5,2.91756]
[1721367564018,0.04474423,3427.9,3427.5,5.37026]
[1721367564410,2.91707,3428.1,3427.5,5.37026]
[1721367564609,0.04474394,3427.8,3427.5,5.37026]
[1721367564841,2.91707,3428.1,3427.6,0.828796]
[1721367565147,2.91707,3428.1,3427.5,5.37026]
[1721367565348,0.04474451,3428.0,3427.5,5.37026]
[1721367565925,2.96190451,3428.0,3427.3,2.9177]
[1721367566323,2.2721,3427.9,3427.4,2.91766]
[1721367566522,0.04475149,3427.8,3427.4,2.91766]
[1721367566854,0.04475149,3427.8,3427.4,3.501215]
[1721367571065,2.91716,3428.0,3427.4,3.501215]
[1721367571430,0.04475177,3427.9,3427.4,3.501215]
[1721367572465,0.04475177,3427.9,3427.5,2.9175]
[1721367572664,5.33372,3428.3,3427.7,2.9174]
[1721367572665,2.4168,3428.3,3427.7,2.9174]
[1721367572841,0.04474255,3428.2,3427.7,2.9174]
[1721367573181,0.04474255,3428.2,3427.9,2.91722]
[1721367573578,2.91673,3428.5,3427.9,2.91722]
[1721367573986,0.04474282,3428.4,3427.9,2.91722]
[1721367575269,0.04474282,3428.4,3427.9,3.81346395]
[1721367576174,0.04474282,3428.4,3428.0,2.91715]
[1721367576780,2.4168,3428.6,3428.0,2.91715]
[1721367576988,0.04489007,3428.3,3428.0,2.91715]
[1721367577191,2.4168,3428.6,3428.0,2.91715]
[1721367577391,0.04488978,3428.2,3428.0,3.8154594]
[1721367577689,0.0448895,3428.1,3428.0,3.8154594]
[1721367577884,5.3335,3428.6,3428.0,3.8154594]
[1721367578076,0.04488969,3428.5,3428.0,3.8154594]
[1721367579592,0.04488969,3428.5,3428.0,0.8983094]
[1721367579890,0.04488969,3428.5,3427.8,2.91728]
[1721367580956,2.91682,3428.4,3427.8,2.91728]
[1721367581352,0.04492758,3428.3,3427.8,2.91728]
[1721367581555,0.04492758,3428.3,3427.6,2.91743]
[1721367581758,2.91715,3428.0,3427.3,8.01213574]
[1721367581958,2.3856,3427.7,3427.3,9.56433483]
[1721367582266,0.04492603,3427.6,3427.3,9.56433483]
[1721367582467,2.91737,3427.8,3427.3,9.56433483]
[1721367582666,0.04492616,3427.7,3427.3,9.56433483]
[1721367582896,2.91737,3427.8,3427.3,9.56433483]
[1721367583097,0.04492616,3427.7,3427.3,9.56433483]
[1721367583251,2.91737,3427.8,3427.4,1.34003685]
[1721367583657,0.04492601,3427.7,3427.4,1.34003685]
[1721367583901,2.91737,3427.8,3427.4,1.34003685]
[1721367584104,0.04492616,3427.7,3427.4,1.34003685]
[1721367584258,2.91737,3427.8,3427.4,1.34003685]
[1721367584458,0.04492616,3427.7,3427.4,1.34003685]
[1721367584670,2.91737,3427.8,3427.4,1.34003685]
[1721367584867,0.04492601,3427.7,3427.4,1.34003685]
[1721367585073,2.91715,3428.0,3427.5,1.47404053]
[1721367585360,0.04492658,3427.9,3427.5,1.47404053]
[1721367587009,0.04492658,3427.9,3427.2,2.91782]
[1721367587398,0.04492658,3427.9,3427.3,2.91769]
[1721367592286,0.04492658,3427.9,3427.5,5.38725]
[1721367592618,2.348,3428.3,3427.5,2.4697]
[1721367592818,2.348,3428.3,3427.7,2.91735]
[1721367592819,0.04487538,3427.8,3427.7,2.91735]
[1721367593118,0.04487538,3427.8,3427.7,3.91048093]
[1721367593413,2.9169,3428.3,3427.7,3.91048093]
[1721367593581,0.04487538,3427.8,3427.7,3.91048093]
[1721367593783,2.348,3428.5,3427.7,0.99313093]
[1721367593989,2.3748,3428.8,3428.1,2.91699]
[1721367595038,5.29127,3428.8,3428.1,2.91699]
[1721367596237,2.91615,3429.2,3428.2,2.91692]
[1721367596424,2.91615,3429.2,3428.2,5.32412]
[1721367596425,2.91638,3428.9,3428.2,5.32412]
[1721367596738,2.91638,3428.9,3428.3,0.824111]
[1721367597122,2.91638,3428.9,3428.3,3.741001]
[1721367598431,5.28646,3429.1,3428.4,2.91675]
[1721367599013,5.28646,3429.1,3428.5,2.91671]
[1721367599219,2.91626,3429.1,3428.5,3.8232011]
[1721367602348,2.91626,3429.1,3428.5,0.9064911]
[1721367605250,0.04355281,3429.0,3428.5,0.9064911]
[1721367608255,0.04355281,3429.0,3428.5,3.8232111]
[1721367613125,0.04355281,3429.0,3428.6,2.91663]
[1721367613355,5.17635,3429.3,3428.7,0.38231211]
[1721367613559,0.04366253,3429.2,3428.7,0.38231211]
[1721367617259,0.04366253,3429.2,3428.8,2.91646]
[1721367617574,0.04370433,3429.1,3428.8,2.91646]
[1721367617869,2.2603,3429.3,3428.8,2.91646]
[1721367618075,0.04374761,3429.0,3428.9,0.46714362]
[1721367618268,2.2603,3429.3,3428.9,0.46714362]
[1721367618449,0.04374761,3429.0,3428.9,0.46714362]
[1721367618636,2.2603,3429.3,3428.9,0.46714362]
[1721367618833,0.04374761,3429.0,3428.8,2.91646]
[1721367619067,2.2603,3429.3,3428.8,2.91646]
[1721367619268,0.04377006,3428.9,3428.8,2.91646]
[1721367619470,2.2603,3429.3,3428.8,2.91646]
[1721367619669,0.04377006,3428.9,3428.8,2.91646]
[1721367619977,0.04377006,3428.9,3428.8,3.77496021]
[1721367620177,2.2603,3429.3,3428.8,3.77496021]
[1721367620407,0.04377091,3429.2,3428.8,3.77496021]
[1721367620744,2.2603,3429.3,3428.8,3.77496021]
[1721367621376,0.04377091,3429.2,3428.8,3.77496021]
[1721367621578,5.17635,3429.3,3428.8,0.85850021]
[1721367621794,0.04377091,3429.2,3428.7,0.38231211]
[1721367622094,0.04377091,3429.2,3428.7,3.29885211]
[1721367627167,0.04377091,3429.2,3428.9,2.91637]
[1721367627368,2.424,3429.4,3428.9,2.91637]
[1721367627669,0.04379202,3429.3,3429.0,0.62152221]
[1721367627869,2.424,3429.6,3429.0,0.62152221]
[1721367628379,0.04379259,3429.5,3429.0,0.62152221]
[1721367633367,0.04379259,3429.5,3429.1,0.05831867]
[1721367633607,0.04379259,3429.5,3429.0,3.59612062]
[1721367633908,0.04379259,3429.5,3429.1,0.65124906]
[1721367644436,0.04379259,3429.5,3429.2,1.01422458]
[1721367644640,0.04379259,3429.5,3429.1,0.65124906]
[1721367644937,0.04379259,3429.5,3429.2,1.014224]
[1721367645101,0.04379259,3429.5,3429.1,0.65124906]
[1721367648133,0.04379259,3429.5,3429.2,1.01422084]
[1721367648342,0.04379259,3429.5,3429.1,0.65124906]
[1721367652442,0.04379259,3429.5,3429.2,0.35675291]
[1721367654817,0.04379259,3429.5,3429.0,2.91628]
[1721367663381,0.04379259,3429.5,3428.8,3.52854574]
[1721367663555,0.04379259,3429.5,3428.9,2.5356017]
[1721367663757,2.95967259,3429.5,3428.9,2.91637]
[1721367664138,2.95967259,3429.5,3428.8,2.91646]
[1721367664344,2.95967259,3429.5,3428.9,0.63837079]
[1721367664345,2.91597,3429.4,3428.9,0.63837079]
[1721367664855,0.04390707,3429.3,3428.9,0.63837079]
[1721367665974,0.04390707,3429.3,3429.0,1.01426237]
[1721367666277,0.04390707,3429.3,3428.9,0.63837079]
[1721367666481,0.04390707,3429.3,3429.0,1.01426156]
[1721367666680,0.04390707,3429.3,3428.9,0.63837079]
[1721367666895,0.04390707,3429.3,3429.0,1.4691982]
[1721367667195,0.04390707,3429.3,3429.0,0.45493586]
[1721367669896,2.91613,3429.2,3428.7,0.99444785]
[1721367670187,2.91613,3429.2,3428.8,1.01432784]
[1721367670391,0.04390609,3429.1,3428.7,0.38231211]
[1721367670554,0.04390609,3429.1,3428.8,3.26601628]
[1721367670751,0.04390609,3429.1,3428.8,0.73020815]
[1721367671990,2.91597,3429.4,3428.8,0.73020815]
[1721367672198,0.0439058,3429.0,3428.8,0.73020815]
[1721367672491,0.04390552,3428.9,3428.8,0.73020815]
[1721367672680,0.04390552,3428.9,3428.8,3.26601127]
[1721367672881,2.91597,3429.4,3428.8,3.26601127]
[1721367673079,0.04390552,3428.9,3428.8,0.73020815]
[1721367673285,2.91597,3429.4,3428.8,3.26601137]
[1721367673479,2.91597,3429.4,3428.9,0.96498092]
[1721367674495,2.91587,3429.5,3428.9,0.96498092]
[1721367674699,2.424,3429.6,3429.0,3.93050293]
[1721367674903,2.424,3429.6,3429.1,2.9162]
[1721367680220,0.04388637,3429.5,3429.2,2.91612]
[1721367680402,0.04388637,3429.5,3429.2,3.82616709]
[1721367680602,2.424,3429.6,3429.2,3.82616709]
[1721367680929,2.4596,3429.9,3429.2,0.91004709]
[1721367681077,2.4596,3429.9,3429.1,2.91621]
[1721367681282,0.04388721,3429.8,3429.3,2.91599]
[1721367685194,0.04388721,3429.8,3429.4,2.91594]
[1721367688130,0.04388721,3429.8,3429.5,2.91586]
[1721367697319,0.04388721,3429.8,3429.3,2.91599]
[1721367699151,2.4401,3429.7,3429.3,2.91599]
[1721367699353,2.484004,3429.7,3429.3,2.91599]
[1721367700839,2.484004,3429.7,3428.9,10.31635]
[1721367701019,2.2978,3429.1,3428.9,7.4]
[1721367701223,3.36565998,3430.7,3428.3,4.14113149]
[1721367701224,2.2978,3428.7,3428.3,7.4]
[1721367701432,0.04389333,3428.6,3428.3,7.4]
[1721367701638,2.2978,3428.7,3428.4,1.031704]
[1721367703973,0.04389423,3428.6,3428.4,1.031704]
[1721367705943,0.04389423,3428.6,3428.2,2.91697]
[1721367709055,0.04389423,3428.6,3428.1,2.91706]
[1721367709441,0.04389423,3428.6,3427.8,7.4]
[1721367709661,2.91695,3428.3,3427.5,2.91756]
[1721367709862,0.832208,3428.2,3427.5,2.91756]
[1721367710024,0.04389235,3428.2,3427.5,2.91756]
[1721367710224,2.91704,3428.2,3427.5,2.91756]
[1721367710429,2.47619312,3428.1,3427.5,2.91756]
[1721367714170,5.39326312,3428.1,3427.5,2.91756]
[1721367714390,2.91717,3428.0,3427.3,2.91773]
[1721367714595,2.91717,3428.0,3427.4,0.809642]
[1721367714963,0.04361592,3427.9,3427.4,0.809642]
[1721367716779,2.91742,3427.7,3427.0,2.2731]
[1721367717187,2.2758,3427.6,3426.9,10.31802]
[1721367717381,2.2758,3427.6,3426.9,2.91802]
[1721367717583,0.0436148,3427.5,3426.9,2.91802]
[1721367717771,0.0436148,3427.5,3427.0,1.124235]
[1721367718113,2.2758,3427.6,3427.0,4.042185]
[1721367722213,2.2758,3427.6,3427.0,1.124235]
[1721367722214,2.91758,3427.5,3427.0,1.124235]
[1721367722401,2.91758,3427.5,3426.8,2.91813]
[1721367722594,0.04361527,3427.4,3426.8,2.91813]
[1721367724076,0.04361527,3427.4,3426.9,2.91808]
[1721367724279,2.2758,3427.6,3427.0,2.918]
[1721367724479,0.0433029,3427.5,3427.0,2.918]
[1721367724718,0.0433029,3427.5,3427.1,0.2918]
[1721367728511,0.0433029,3427.5,3427.0,2.91799]
[1721367735218,0.0433029,3427.5,3427.1,2.91791]
[1721367739842,0.0433029,3427.5,3427.3,2.91774]
[1721367741464,0.0433029,3427.5,3427.4,5.83532]
[1721367741749,2.2509,3428.0,3427.7,2.91733]
[1721367751269,2.3304,3428.2,3427.9,2.91723]
[1721367751485,2.3304,3428.2,3427.7,3.500826]
[1721367751771,2.3304,3428.2,3427.8,2.91731]
[1721367753280,2.3304,3428.2,3427.6,2.91748]
[1721367753867,0.04329906,3428.1,3427.7,2.9174]
[1721367755142,0.04329906,3428.1,3427.8,2.91732]
[1721367755347,0.04329906,3428.1,3427.9,0.530412]
[1721367755548,5.28551,3428.4,3427.9,0.530412]
[1721367755774,0.04329878,3428.0,3427.8,2.91732]
[1721367755979,5.28551,3428.4,3427.8,2.91732]
[1721367756146,0.0432985,3427.9,3427.8,2.91732]